[Event "*** Titled Tuesday Blitz"]
[Site "Chess.com"]
[Date "2020.04.07"]
[Round "3"]
[White "ahappypawn"]
[Black "ferdipy"]
[Result "0-1"]
[WhiteElo "2349"]
[BlackElo "2166"]
[TimeControl "180+1"]
[EndTime "13:31:04 PDT"]
[Termination "ferdipy won on time"]

1. c4 {[%clk 0:03:00.9]} 1... e5 {[%clk 0:02:57.6]} 2. Nc3 {[%clk 0:03:00.5]}
2... Nc6 {[%clk 0:02:56.8]} 3. g3 {[%clk 0:03:00.4]} 3... g6 {[%clk 0:02:56]} 4.
Bg2 {[%clk 0:03:00.7]} 4... Bg7 {[%clk 0:02:56.2]} 5. e3 {[%clk 0:03:00.2]} 5...
d6 {[%clk 0:02:56.5]} 6. Nge2 {[%clk 0:03:00.3]} 6... Be6 {[%clk 0:02:57]} 7. b3
{[%clk 0:02:53.6]} 7... Qd7 {[%clk 0:02:56.9]} 8. Nd5 {[%clk 0:02:46.1]} 8...
O-O-O {[%clk 0:02:36.9]} 9. Bb2 {[%clk 0:02:37.6]} 9... Bh3 {[%clk 0:02:33.3]}
10. Rg1 {[%clk 0:01:55.3]} 10... Bxg2 {[%clk 0:02:23.8]} 11. Rxg2 {[%clk
0:01:55.6]} 11... Nge7 {[%clk 0:02:12.8]} 12. Nec3 {[%clk 0:01:53.6]} 12... Qh3
{[%clk 0:02:01.9]} 13. Kf1 {[%clk 0:01:53.1]} 13... h5 {[%clk 0:01:58.3]} 14. b4
{[%clk 0:01:45.9]} 14... Nxd5 {[%clk 0:01:46.2]} 15. Nxd5 {[%clk 0:01:44.7]}
15... Rde8 {[%clk 0:01:42.8]} 16. a4 {[%clk 0:01:40.9]} 16... f5 {[%clk
0:01:19.9]} 17. b5 {[%clk 0:01:23.5]} 17... Ne7 {[%clk 0:01:18.2]} 18. a5 {[%clk
0:01:18.9]} 18... Qg4 {[%clk 0:01:04.8]} 19. d3 {[%clk 0:01:03.4]} 19... Nxd5
{[%clk 0:01:00.6]} 20. cxd5 {[%clk 0:00:55.6]} 20... Qb4 {[%clk 0:01:00.6]} 21.
Rb1 {[%clk 0:00:44]} 21... Qxa5 {[%clk 0:00:51.2]} 22. f3 {[%clk 0:00:40.4]}
22... h4 {[%clk 0:00:42.6]} 23. g4 {[%clk 0:00:25.8]} 23... h3 {[%clk
0:00:41.8]} 24. Rf2 {[%clk 0:00:22]} 24... fxg4 {[%clk 0:00:40.3]} 25. fxg4
{[%clk 0:00:22.1]} 25... Rhf8 {[%clk 0:00:39.7]} 26. Rxf8 {[%clk 0:00:13.3]}
26... Rxf8+ {[%clk 0:00:39.7]} 27. Kg1 {[%clk 0:00:13.3]} 27... Qb6 {[%clk
0:00:39.8]} 28. Qe1 {[%clk 0:00:11.7]} 28... Rf4 {[%clk 0:00:36.4]} 29. Qe2
{[%clk 0:00:07.2]} 29... Bh6 {[%clk 0:00:29.5]} 30. Bd4 {[%clk 0:00:06.3]} 30...
Rxd4 {[%clk 0:00:22.9]} 31. exd4 {[%clk 0:00:06.5]} 31... Qxd4+ {[%clk
0:00:23.8]} 32. Kh1 {[%clk 0:00:05.7]} 32... Qxd5+ {[%clk 0:00:23.8]} 33. Qe4
{[%clk 0:00:06.3]} 33... Qxe4+ {[%clk 0:00:17.6]} 34. dxe4 {[%clk 0:00:06.3]}
34... c6 {[%clk 0:00:16.7]} 35. bxc6 {[%clk 0:00:04.4]} 35... bxc6 {[%clk
0:00:17.6]} 36. Rb3 {[%clk 0:00:04.9]} 36... d5 {[%clk 0:00:17.1]} 37. Rxh3
{[%clk 0:00:05.8]} 37... Bf4 {[%clk 0:00:17.7]} 38. exd5 {[%clk 0:00:05.4]}
38... cxd5 {[%clk 0:00:18.2]} 39. Kg2 {[%clk 0:00:06.3]} 39... e4 {[%clk
0:00:16.7]} 40. Kf1 {[%clk 0:00:07.2]} 40... d4 {[%clk 0:00:16.5]} 41. Rh8+
{[%clk 0:00:06.9]} 41... Kd7 {[%clk 0:00:16.3]} 42. Ra8 {[%clk 0:00:07.3]} 42...
Bxh2 {[%clk 0:00:11.1]} 43. Rxa7+ {[%clk 0:00:07]} 43... Ke6 {[%clk 0:00:11.7]}
44. Ra6+ {[%clk 0:00:06.8]} 44... Kf7 {[%clk 0:00:11.3]} 45. Ke2 {[%clk
0:00:06.1]} 45... Bf4 {[%clk 0:00:10.5]} 46. Ra4 {[%clk 0:00:05.8]} 46... d3+
{[%clk 0:00:10.8]} 47. Kd1 {[%clk 0:00:05.7]} 47... g5 {[%clk 0:00:07.9]} 48.
Rxe4 {[%clk 0:00:05.9]} 48... d2 {[%clk 0:00:08.8]} 49. Rd4 {[%clk 0:00:03.9]}
49... Ke6 {[%clk 0:00:08.8]} 50. Ke2 {[%clk 0:00:03.2]} 50... Ke5 {[%clk
0:00:09.3]} 51. Ra4 {[%clk 0:00:02]} 51... Kd5 {[%clk 0:00:09.5]} 52. Kd1 {[%clk
0:00:01.7]} 52... Kc5 {[%clk 0:00:09.5]} 53. Ke2 {[%clk 0:00:01.9]} 53... Kb5
{[%clk 0:00:09.3]} 54. Rd4 {[%clk 0:00:02.4]} 54... Kc5 {[%clk 0:00:09.8]} 55.
Rd8 {[%clk 0:00:02.8]} 55... Kc4 {[%clk 0:00:09.7]} 56. Kf3 {[%clk 0:00:02.1]}
56... Kc3 {[%clk 0:00:09.5]} 57. Ke2 {[%clk 0:00:02.1]} 57... Kc2 {[%clk
0:00:09.8]} 58. Rc8+ {[%clk 0:00:02.4]} 58... Kb3 {[%clk 0:00:09.8]} 59. Rd8
{[%clk 0:00:02.6]} 59... Kc2 {[%clk 0:00:08.4]} 60. Rc8+ {[%clk 0:00:02.7]}
60... Kb3 {[%clk 0:00:08.7]} 61. Kd1 {[%clk 0:00:03.3]} 61... Kb4 {[%clk
0:00:08.7]} 62. Rf8 {[%clk 0:00:02.9]} 62... Kc4 {[%clk 0:00:08.8]} 63. Rf5
{[%clk 0:00:02]} 63... Kd3 {[%clk 0:00:09.3]} 64. Rxf4 {[%clk 0:00:01.3]} 64...
gxf4 {[%clk 0:00:08.4]} 0-1

[Event "*** Titled Tuesday Blitz"]
[Site "Chess.com"]
[Date "2020.04.07"]
[Round "3"]
[White "kai_nov"]
[Black "ajian"]
[Result "0-1"]
[WhiteElo "2193"]
[BlackElo "2393"]
[TimeControl "180+1"]
[EndTime "13:31:06 PDT"]
[Termination "ajian won by checkmate"]

1. d4 {[%clk 0:03:00.9]} 1... d5 {[%clk 0:02:59.6]} 2. c4 {[%clk 0:03:00.8]}
2... e6 {[%clk 0:02:59.5]} 3. Nc3 {[%clk 0:02:59.5]} 3... Nf6 {[%clk 0:02:59.5]}
4. cxd5 {[%clk 0:02:58.2]} 4... exd5 {[%clk 0:03:00.4]} 5. Bg5 {[%clk
0:02:57.6]} 5... c6 {[%clk 0:03:00.7]} 6. Qc2 {[%clk 0:02:50.7]} 6... Be7 {[%clk
0:03:00.6]} 7. e3 {[%clk 0:02:50.6]} 7... O-O {[%clk 0:03:00.4]} 8. Bd3 {[%clk
0:02:49.6]} 8... Nbd7 {[%clk 0:03:00.5]} 9. Nf3 {[%clk 0:02:46.6]} 9... h6
{[%clk 0:02:56.3]} 10. Bf4 {[%clk 0:02:46]} 10... Nh5 {[%clk 0:02:54.7]} 11. O-O
{[%clk 0:02:31.2]} 11... Nxf4 {[%clk 0:02:51]} 12. exf4 {[%clk 0:02:31]} 12...
Bd6 {[%clk 0:02:51.4]} 13. g3 {[%clk 0:02:27.5]} 13... Nf6 {[%clk 0:02:49.1]}
14. Ne5 {[%clk 0:02:26]} 14... Re8 {[%clk 0:02:40]} 15. Rfe1 {[%clk 0:02:25.9]}
15... Bh3 {[%clk 0:02:24.5]} 16. Bf5 {[%clk 0:02:21.6]} 16... Bxf5 {[%clk
0:02:17.9]} 17. Qxf5 {[%clk 0:02:21.6]} 17... Qb6 {[%clk 0:02:10.1]} 18. Qd3
{[%clk 0:02:03.3]} 18... a5 {[%clk 0:01:59.6]} 19. Re2 {[%clk 0:01:39.5]} 19...
Re7 {[%clk 0:01:59.1]} 20. Rae1 {[%clk 0:01:38.9]} 20... Rae8 {[%clk 0:01:54.9]}
21. Kg2 {[%clk 0:01:30.1]} 21... Qc7 {[%clk 0:01:48.5]} 22. h3 {[%clk
0:01:17.8]} 22... Nd7 {[%clk 0:01:39.3]} 23. Qf5 {[%clk 0:00:58.6]} 23... Nf8
{[%clk 0:01:34.3]} 24. h4 {[%clk 0:00:52.7]} 24... Ne6 {[%clk 0:01:29.1]} 25.
Qd3 {[%clk 0:00:51.9]} 25... b5 {[%clk 0:01:14.7]} 26. f5 {[%clk 0:00:49.9]}
26... Nxd4 {[%clk 0:01:10]} 27. Qxd4 {[%clk 0:00:16.5]} 27... Rxe5 {[%clk
0:01:07.7]} 28. Rxe5 {[%clk 0:00:12.9]} 28... Rxe5 {[%clk 0:01:03.2]} 29. Rxe5
{[%clk 0:00:12.2]} 29... Bxe5 {[%clk 0:01:04.1]} 30. Qg4 {[%clk 0:00:12.5]}
30... Bf6 {[%clk 0:00:54.9]} 31. Qe2 {[%clk 0:00:11.8]} 31... Qe5 {[%clk
0:00:52.2]} 32. Qd2 {[%clk 0:00:08.8]} 32... Qxf5 {[%clk 0:00:46.9]} 33. b3
{[%clk 0:00:07.6]} 33... d4 {[%clk 0:00:46.5]} 34. Ne2 {[%clk 0:00:07.4]} 34...
c5 {[%clk 0:00:39.2]} 35. Nf4 {[%clk 0:00:07.2]} 35... c4 {[%clk 0:00:34.5]} 36.
bxc4 {[%clk 0:00:06.7]} 36... bxc4 {[%clk 0:00:35.4]} 37. Qe2 {[%clk 0:00:07.3]}
37... d3 {[%clk 0:00:32.8]} 38. Qe8+ {[%clk 0:00:07.1]} 38... Kh7 {[%clk
0:00:32.5]} 39. Qxf7 {[%clk 0:00:07.3]} 39... d2 {[%clk 0:00:20.5]} 40. Ne6
{[%clk 0:00:07.4]} 40... d1=Q {[%clk 0:00:20.1]} 41. Nf8+ {[%clk 0:00:07.4]}
41... Kh8 {[%clk 0:00:19.4]} 42. Ng6+ {[%clk 0:00:05.4]} 42... Qxg6 {[%clk
0:00:19.6]} 43. Qxg6 {[%clk 0:00:05.8]} 43... Qd5+ {[%clk 0:00:18.2]} 44. Kg1
{[%clk 0:00:04.8]} 44... c3 {[%clk 0:00:18.2]} 45. h5 {[%clk 0:00:04.5]} 45...
Qd1+ {[%clk 0:00:10.1]} 46. Kh2 {[%clk 0:00:04.3]} 46... Qe2 {[%clk 0:00:09.2]}
47. Kg1 {[%clk 0:00:04.3]} 47... c2 {[%clk 0:00:06.9]} 48. Kg2 {[%clk
0:00:04.4]} 48... c1=Q {[%clk 0:00:06.4]} 49. Qf5 {[%clk 0:00:04.5]} 49... Qcf1+
{[%clk 0:00:06]} 50. Kh2 {[%clk 0:00:04.2]} 50... Qexf2+ {[%clk 0:00:06.3]} 51.
Qxf2 {[%clk 0:00:04.5]} 51... Qxf2+ {[%clk 0:00:07.2]} 52. Kh3 {[%clk
0:00:04.9]} 52... Be5 {[%clk 0:00:06.9]} 53. Kg4 {[%clk 0:00:05.2]} 53... Qxg3+
{[%clk 0:00:06.9]} 54. Kf5 {[%clk 0:00:05.6]} 54... Qf4+ {[%clk 0:00:07.3]} 55.
Ke6 {[%clk 0:00:06]} 55... Qf6+ {[%clk 0:00:07.4]} 56. Kd5 {[%clk 0:00:06.3]}
56... Qd6+ {[%clk 0:00:07.9]} 57. Ke4 {[%clk 0:00:06.7]} 57... Bf6 {[%clk
0:00:08.8]} 58. a4 {[%clk 0:00:06.3]} 58... Qe5+ {[%clk 0:00:09]} 59. Kf3 {[%clk
0:00:06.7]} 59... Qd4 {[%clk 0:00:09]} 60. Ke2 {[%clk 0:00:06.5]} 60... Kg8
{[%clk 0:00:09.2]} 61. Kf3 {[%clk 0:00:06.8]} 61... Kf7 {[%clk 0:00:08.9]} 62.
Kg3 {[%clk 0:00:07.2]} 62... Ke6 {[%clk 0:00:09.2]} 63. Kf3 {[%clk 0:00:07.7]}
63... Kf5 {[%clk 0:00:09.4]} 64. Kg3 {[%clk 0:00:08.1]} 64... Qe3+ {[%clk
0:00:09.7]} 65. Kg2 {[%clk 0:00:08.1]} 65... Kg4 {[%clk 0:00:10.1]} 66. Kh1
{[%clk 0:00:08.6]} 66... Qe2 {[%clk 0:00:08.1]} 67. Kg1 {[%clk 0:00:08.5]} 67...
Kg3 {[%clk 0:00:09]} 68. Kh1 {[%clk 0:00:08.5]} 68... Qf1# {[%clk 0:00:09.4]}
0-1

[Event "*** Titled Tuesday Blitz"]
[Site "Chess.com"]
[Date "2020.04.07"]
[Round "3"]
[White "BvsN"]
[Black "Superfelix"]
[Result "1-0"]
[WhiteElo "2303"]
[BlackElo "2487"]
[TimeControl "180+1"]
[EndTime "13:31:09 PDT"]
[Termination "BvsN won by resignation"]

1. d4 {[%clk 0:03:00.9]} 1... Nf6 {[%clk 0:02:57.4]} 2. c4 {[%clk 0:03:01.2]}
2... g6 {[%clk 0:02:57.3]} 3. Nc3 {[%clk 0:03:01.3]} 3... Bg7 {[%clk 0:02:57.7]}
4. e4 {[%clk 0:03:01.7]} 4... d6 {[%clk 0:02:58]} 5. Nge2 {[%clk 0:03:01.9]}
5... O-O {[%clk 0:02:58.2]} 6. f3 {[%clk 0:03:02.3]} 6... Na6 {[%clk 0:02:58.3]}
7. Be3 {[%clk 0:02:59.4]} 7... e5 {[%clk 0:02:57.8]} 8. d5 {[%clk 0:02:59.8]}
8... Nc5 {[%clk 0:02:57.6]} 9. Qd2 {[%clk 0:02:56.8]} 9... a5 {[%clk 0:02:57.3]}
10. g4 {[%clk 0:02:56.5]} 10... h5 {[%clk 0:02:55.3]} 11. h3 {[%clk 0:02:54]}
11... Bd7 {[%clk 0:02:43]} 12. O-O-O {[%clk 0:02:53.6]} 12... a4 {[%clk
0:02:42.3]} 13. Bg5 {[%clk 0:02:46.5]} 13... a3 {[%clk 0:02:37.5]} 14. b3 {[%clk
0:02:42.2]} 14... c6 {[%clk 0:02:37.6]} 15. gxh5 {[%clk 0:02:40.6]} 15... cxd5
{[%clk 0:02:29.2]} 16. Nxd5 {[%clk 0:02:35.4]} 16... Be6 {[%clk 0:02:27.2]} 17.
h6 {[%clk 0:02:32.7]} 17... Bh8 {[%clk 0:02:26.7]} 18. h7+ {[%clk 0:02:32.7]}
18... Kxh7 {[%clk 0:02:23.2]} 19. h4 {[%clk 0:02:26.2]} 19... Bxd5 {[%clk
0:02:23.2]} 20. exd5 {[%clk 0:02:07.1]} 20... e4 {[%clk 0:02:15.3]} 21. h5
{[%clk 0:02:01.9]} 21... Nxb3+ {[%clk 0:02:04.7]} 22. axb3 {[%clk 0:01:59.4]}
22... a2 {[%clk 0:02:04.9]} 23. hxg6+ {[%clk 0:01:56]} 23... Kg8 {[%clk
0:01:57.6]} 24. Rxh8+ {[%clk 0:01:46.6]} 24... Kxh8 {[%clk 0:01:56.7]} 25. Kb2
{[%clk 0:01:28.8]} 25... fxg6 {[%clk 0:01:50.9]} 26. Nf4 {[%clk 0:01:24.7]}
26... Qe8 {[%clk 0:01:32.7]} 27. Ne6 {[%clk 0:01:14.6]} 27... Rf7 {[%clk
0:01:31.8]} 28. Qd4 {[%clk 0:01:05.7]} 28... Qe7 {[%clk 0:01:30.6]} 29. fxe4
{[%clk 0:00:55.5]} 29... Kg8 {[%clk 0:01:22.8]} 30. Bd3 {[%clk 0:00:48.3]} 30...
Ra6 {[%clk 0:00:56.1]} 31. Rf1 {[%clk 0:00:40.1]} 31... Nh5 {[%clk 0:00:35.1]}
32. Ra1 {[%clk 0:00:13.3]} 32... Qe8 {[%clk 0:00:34.1]} 33. Rxa2 {[%clk
0:00:12.3]} 33... Rxa2+ {[%clk 0:00:32.7]} 34. Kxa2 {[%clk 0:00:12.7]} 34...
Qa8+ {[%clk 0:00:33.5]} 35. Kb2 {[%clk 0:00:11.5]} 35... Qa5 {[%clk 0:00:33.9]}
36. Be3 {[%clk 0:00:06.3]} 36... Qe1 {[%clk 0:00:29.9]} 37. Ng5 {[%clk
0:00:03.1]} 37... Re7 {[%clk 0:00:21.5]} 38. Nf3 {[%clk 0:00:03.1]} 38... Qh1
{[%clk 0:00:19.9]} 39. Nd2 {[%clk 0:00:03.1]} 39... Rf7 {[%clk 0:00:17.1]} 40.
Nb1 {[%clk 0:00:02.7]} 40... Qd1 {[%clk 0:00:16.9]} 41. Bc2 {[%clk 0:00:01.9]}
41... Qe2 {[%clk 0:00:15.9]} 42. Bd2 {[%clk 0:00:01.6]} 42... Qg2 {[%clk
0:00:15.7]} 43. Bc3 {[%clk 0:00:01.7]} 43... Rf2 {[%clk 0:00:16.2]} 44. Qh8+
{[%clk 0:00:01.2]} 44... Kf7 {[%clk 0:00:16.7]} 45. Qh7+ {[%clk 0:00:01.5]}
45... Ke8 {[%clk 0:00:16.9]} 46. Qg8+ {[%clk 0:00:01.9]} 46... Kd7 {[%clk
0:00:17]} 47. Qe6+ {[%clk 0:00:02.2]} 47... Kd8 {[%clk 0:00:17.2]} 48. Na3
{[%clk 0:00:02.7]} 48... Qg5 {[%clk 0:00:15.1]} 49. Qxd6+ {[%clk 0:00:02.6]}
49... Ke8 {[%clk 0:00:14.3]} 50. Qe6+ {[%clk 0:00:03.1]} 50... Kf8 {[%clk
0:00:14]} 51. Bb4+ {[%clk 0:00:03.6]} 51... Kg7 {[%clk 0:00:14.9]} 52. Bc3+
{[%clk 0:00:04.2]} 52... Kh7 {[%clk 0:00:15.1]} 53. Qd7+ {[%clk 0:00:04.3]}
53... Kg8 {[%clk 0:00:14.6]} 54. Qe8+ {[%clk 0:00:04.5]} 54... Kh7 {[%clk
0:00:14.2]} 55. Qd7+ {[%clk 0:00:05.1]} 55... Kg8 {[%clk 0:00:13.8]} 56. Qe8+
{[%clk 0:00:05.7]} 56... Rf8 {[%clk 0:00:14.1]} 57. Qe6+ {[%clk 0:00:05.8]}
57... Rf7 {[%clk 0:00:13]} 58. d6 {[%clk 0:00:06.2]} 58... Ng7 {[%clk
0:00:13.1]} 59. Qc8+ {[%clk 0:00:05.8]} 59... Kh7 {[%clk 0:00:12.8]} 60. d7
{[%clk 0:00:05.8]} 60... Qg4 {[%clk 0:00:09.3]} 61. d8=Q {[%clk 0:00:05.5]} 1-0

[Event "*** Titled Tuesday Blitz"]
[Site "Chess.com"]
[Date "2020.04.07"]
[Round "3"]
[White "Sawyer2908"]
[Black "imdarealist"]
[Result "1-0"]
[WhiteElo "2532"]
[BlackElo "2222"]
[TimeControl "180+1"]
[EndTime "13:31:10 PDT"]
[Termination "Sawyer2908 won by resignation"]

1. e4 {[%clk 0:03:00.9]} 1... e5 {[%clk 0:02:59.1]} 2. Nc3 {[%clk 0:03:00.1]}
2... Nf6 {[%clk 0:02:58.1]} 3. Bc4 {[%clk 0:02:59.2]} 3... Bb4 {[%clk
0:02:52.9]} 4. d3 {[%clk 0:02:55.3]} 4... h6 {[%clk 0:02:45.3]} 5. Ne2 {[%clk
0:02:49.8]} 5... d6 {[%clk 0:02:43.4]} 6. O-O {[%clk 0:02:49.2]} 6... O-O {[%clk
0:02:38.2]} 7. a3 {[%clk 0:02:48.7]} 7... Bc5 {[%clk 0:02:36]} 8. Na4 {[%clk
0:02:47.7]} 8... Bb6 {[%clk 0:02:30.7]} 9. Nxb6 {[%clk 0:02:47.5]} 9... axb6
{[%clk 0:02:31.6]} 10. f4 {[%clk 0:02:44.1]} 10... Be6 {[%clk 0:02:27]} 11. Bxe6
{[%clk 0:02:29]} 11... fxe6 {[%clk 0:02:27.9]} 12. fxe5 {[%clk 0:02:29.6]} 12...
dxe5 {[%clk 0:02:26.5]} 13. Kh1 {[%clk 0:02:27]} 13... Nc6 {[%clk 0:02:03.7]}
14. Ng3 {[%clk 0:02:19.5]} 14... Qe7 {[%clk 0:01:44.7]} 15. Be3 {[%clk
0:02:15.9]} 15... Rad8 {[%clk 0:01:32.1]} 16. h3 {[%clk 0:02:01.8]} 16... Kh7
{[%clk 0:01:28.4]} 17. Nh5 {[%clk 0:01:41]} 17... Nxh5 {[%clk 0:01:22.9]} 18.
Qxh5 {[%clk 0:01:38.5]} 18... Rxf1+ {[%clk 0:01:11]} 19. Rxf1 {[%clk 0:01:37.4]}
19... Rf8 {[%clk 0:01:11.9]} 20. Rf3 {[%clk 0:01:06.9]} 20... Rxf3 {[%clk
0:01:01.4]} 21. Qxf3 {[%clk 0:01:06.4]} 21... Qf6 {[%clk 0:00:49]} 22. Qxf6
{[%clk 0:00:58.3]} 22... gxf6 {[%clk 0:00:49.9]} 23. c3 {[%clk 0:00:58.9]} 23...
f5 {[%clk 0:00:45]} 24. Kg1 {[%clk 0:00:57.5]} 24... Kg6 {[%clk 0:00:40.6]} 25.
Kf2 {[%clk 0:00:55.7]} 25... h5 {[%clk 0:00:38.5]} 26. Kf3 {[%clk 0:00:54.5]}
26... Na5 {[%clk 0:00:34.8]} 27. b4 {[%clk 0:00:48.1]} 27... Nc6 {[%clk
0:00:34.4]} 28. g4 {[%clk 0:00:42.2]} 28... hxg4+ {[%clk 0:00:15.1]} 29. hxg4
{[%clk 0:00:41.8]} 29... Ne7 {[%clk 0:00:11.6]} 30. Bf2 {[%clk 0:00:31.2]} 30...
Kg5 {[%clk 0:00:09.2]} 31. gxf5 {[%clk 0:00:24.8]} 31... exf5 {[%clk 0:00:10.1]}
32. Bg3 {[%clk 0:00:21.9]} 32... f4 {[%clk 0:00:10.1]} 33. Bf2 {[%clk 0:00:22]}
33... Ng6 {[%clk 0:00:09.7]} 34. d4 {[%clk 0:00:20.4]} 34... b5 {[%clk
0:00:05.7]} 35. Be1 {[%clk 0:00:19.2]} 35... c6 {[%clk 0:00:05.5]} 36. d5 {[%clk
0:00:18.1]} 36... Nf8 {[%clk 0:00:02.7]} 37. Bf2 {[%clk 0:00:14.9]} 37... Kf6
{[%clk 0:00:03]} 38. Bc5 {[%clk 0:00:14.5]} 38... Nd7 {[%clk 0:00:03.3]} 39. Bf2
{[%clk 0:00:13]} 39... Ke7 {[%clk 0:00:02.9]} 40. dxc6 {[%clk 0:00:12]} 40...
bxc6 {[%clk 0:00:02.9]} 41. Kg4 {[%clk 0:00:12.5]} 41... Kd6 {[%clk 0:00:03]}
42. Kf5 {[%clk 0:00:12.3]} 42... Nf8 {[%clk 0:00:02.4]} 43. Bh4 {[%clk
0:00:11.2]} 43... Nd7 {[%clk 0:00:02.6]} 44. Bf2 {[%clk 0:00:10.6]} 44... Kc7
{[%clk 0:00:02.6]} 45. Ke6 {[%clk 0:00:09.6]} 45... Kc8 {[%clk 0:00:02.3]} 46.
Kd6 {[%clk 0:00:09.3]} 46... Kd8 {[%clk 0:00:02.3]} 47. Kxc6 {[%clk 0:00:08.8]}
47... Nf6 {[%clk 0:00:03.2]} 48. Bh4 {[%clk 0:00:05.1]} 48... Ke7 {[%clk
0:00:02.3]} 49. Kxb5 {[%clk 0:00:05.3]} 49... Ke6 {[%clk 0:00:02.8]} 50. a4
{[%clk 0:00:05.4]} 50... Nxe4 {[%clk 0:00:02.5]} 51. a5 {[%clk 0:00:05.5]} 51...
Nxc3+ {[%clk 0:00:03]} 52. Kc6 {[%clk 0:00:06]} 52... Nd5 {[%clk 0:00:03]} 53.
b5 {[%clk 0:00:05.4]} 53... Nb4+ {[%clk 0:00:03]} 54. Kb7 {[%clk 0:00:05]} 54...
e4 {[%clk 0:00:03.1]} 55. a6 {[%clk 0:00:05.4]} 55... Nxa6 {[%clk 0:00:03]} 56.
bxa6 {[%clk 0:00:05.2]} 56... f3 {[%clk 0:00:03.9]} 57. a7 {[%clk 0:00:04.9]}
57... e3 {[%clk 0:00:04.8]} 58. a8=Q {[%clk 0:00:04.9]} 58... f2 {[%clk
0:00:05.7]} 59. Qe8+ {[%clk 0:00:05]} 59... Kd5 {[%clk 0:00:06]} 60. Bxf2 {[%clk
0:00:04.3]} 60... exf2 {[%clk 0:00:05.8]} 61. Qf7+ {[%clk 0:00:05.2]} 1-0

[Event "*** Titled Tuesday Blitz"]
[Site "Chess.com"]
[Date "2020.04.07"]
[Round "3"]
[White "Willychess95"]
[Black "WPWPWP-2015"]
[Result "1-0"]
[WhiteElo "2615"]
[BlackElo "2391"]
[TimeControl "180+1"]
[EndTime "13:31:12 PDT"]
[Termination "Willychess95 won by resignation"]

1. e4 {[%clk 0:02:59.4]} 1... e5 {[%clk 0:02:58.9]} 2. Nf3 {[%clk 0:02:57.2]}
2... Nc6 {[%clk 0:02:58.6]} 3. Bc4 {[%clk 0:02:57.5]} 3... Nf6 {[%clk 0:02:58]}
4. Ng5 {[%clk 0:02:57.4]} 4... d5 {[%clk 0:02:57.5]} 5. exd5 {[%clk 0:02:57.8]}
5... Na5 {[%clk 0:02:57.5]} 6. Bb5+ {[%clk 0:02:57.3]} 6... c6 {[%clk 0:02:58]}
7. dxc6 {[%clk 0:02:57]} 7... bxc6 {[%clk 0:02:58.6]} 8. Qf3 {[%clk 0:02:56.1]}
8... Be7 {[%clk 0:02:58.2]} 9. Bd3 {[%clk 0:02:45.8]} 9... O-O {[%clk
0:02:48.9]} 10. O-O {[%clk 0:02:44.4]} 10... h6 {[%clk 0:02:45.4]} 11. Ne4
{[%clk 0:02:43.2]} 11... Nd5 {[%clk 0:02:45]} 12. Ng3 {[%clk 0:02:42.7]} 12...
Nf4 {[%clk 0:02:41.7]} 13. Bf5 {[%clk 0:02:41.7]} 13... Ba6 {[%clk 0:02:35.8]}
14. Re1 {[%clk 0:02:23.3]} 14... Bd6 {[%clk 0:02:15.5]} 15. d3 {[%clk
0:02:09.9]} 15... g6 {[%clk 0:02:10.2]} 16. Be4 {[%clk 0:02:09.9]} 16... Qc7
{[%clk 0:01:55.4]} 17. Bd2 {[%clk 0:01:32.1]} 17... f5 {[%clk 0:01:47.8]} 18.
Bxa5 {[%clk 0:01:31.4]} 18... Qxa5 {[%clk 0:01:46.6]} 19. Nc3 {[%clk 0:01:28.2]}
19... fxe4 {[%clk 0:01:44.3]} 20. Ngxe4 {[%clk 0:01:22.1]} 20... Qc7 {[%clk
0:01:35.5]} 21. Nxd6 {[%clk 0:01:18.3]} 21... Qxd6 {[%clk 0:01:34.5]} 22. Ne4
{[%clk 0:01:18.6]} 22... Qd5 {[%clk 0:01:28.8]} 23. Rad1 {[%clk 0:01:12.9]}
23... Bc8 {[%clk 0:01:19.6]} 24. Qe3 {[%clk 0:01:06.8]} 24... Kh7 {[%clk
0:01:13.6]} 25. f3 {[%clk 0:01:06.5]} 25... Bf5 {[%clk 0:01:02.6]} 26. Nf2
{[%clk 0:01:04.7]} 26... Rae8 {[%clk 0:00:53.5]} 27. Qxa7+ {[%clk 0:01:03.7]}
27... Rf7 {[%clk 0:00:53.5]} 28. Qe3 {[%clk 0:01:02.4]} 28... Bc8 {[%clk
0:00:41]} 29. b3 {[%clk 0:00:53.8]} 29... c5 {[%clk 0:00:35.7]} 30. c3 {[%clk
0:00:46.3]} 30... Bf5 {[%clk 0:00:25.2]} 31. d4 {[%clk 0:00:38.5]} 31... cxd4
{[%clk 0:00:23.1]} 32. cxd4 {[%clk 0:00:37.2]} 32... Ne6 {[%clk 0:00:16.5]} 33.
dxe5 {[%clk 0:00:34.1]} 33... Qa5 {[%clk 0:00:15.4]} 34. Qd2 {[%clk 0:00:31.1]}
34... Qxd2 {[%clk 0:00:14.1]} 35. Rxd2 {[%clk 0:00:32]} 35... Ra7 {[%clk
0:00:11.9]} 36. g3 {[%clk 0:00:30.3]} 36... h5 {[%clk 0:00:10.4]} 37. h4 {[%clk
0:00:27]} 37... Nc5 {[%clk 0:00:09.3]} 38. f4 {[%clk 0:00:24]} 38... Be6 {[%clk
0:00:09.6]} 39. Rc1 {[%clk 0:00:22.8]} 39... Rc7 {[%clk 0:00:08.7]} 40. Rdc2
{[%clk 0:00:18.1]} 40... Rec8 {[%clk 0:00:08.1]} 41. Ne4 {[%clk 0:00:18.4]}
41... Na6 {[%clk 0:00:07.8]} 42. Rxc7+ {[%clk 0:00:16.2]} 42... Rxc7 {[%clk
0:00:08.5]} 43. Ng5+ {[%clk 0:00:16]} 43... Kg8 {[%clk 0:00:06.1]} 44. Rd1
{[%clk 0:00:14]} 44... Bf5 {[%clk 0:00:06.4]} 45. Rd6 {[%clk 0:00:12.7]} 45...
Nc5 {[%clk 0:00:05.8]} 46. Kf2 {[%clk 0:00:10.9]} 46... Ne4+ {[%clk 0:00:06.1]}
47. Nxe4 {[%clk 0:00:11.3]} 47... Bxe4 {[%clk 0:00:07]} 48. Ke3 {[%clk
0:00:12.2]} 48... Bf5 {[%clk 0:00:07.2]} 49. Kd4 {[%clk 0:00:11.8]} 49... Rc2
{[%clk 0:00:07.3]} 50. a4 {[%clk 0:00:11.5]} 50... Rd2+ {[%clk 0:00:07.1]} 51.
Kc5 {[%clk 0:00:11.5]} 51... Rc2+ {[%clk 0:00:06.3]} 52. Kb4 {[%clk 0:00:08.6]}
52... Rg2 {[%clk 0:00:06.3]} 53. a5 {[%clk 0:00:08.8]} 53... Rxg3 {[%clk
0:00:06.4]} 54. Ka4 {[%clk 0:00:08.3]} 54... Rg4 {[%clk 0:00:06.7]} 55. a6
{[%clk 0:00:07.6]} 55... Rxf4+ {[%clk 0:00:06.8]} 56. Ka5 {[%clk 0:00:08.1]}
56... Rxh4 {[%clk 0:00:06.1]} 57. a7 {[%clk 0:00:07.9]} 57... Be4 {[%clk
0:00:05.7]} 58. Rd4 {[%clk 0:00:08.3]} 58... Rh1 {[%clk 0:00:05.8]} 59. Rxe4
{[%clk 0:00:07.8]} 59... Ra1+ {[%clk 0:00:06.3]} 60. Ra4 {[%clk 0:00:08.3]}
60... Rxa4+ {[%clk 0:00:06.3]} 61. bxa4 {[%clk 0:00:09.2]} 1-0